fUSD/lending_fUSD_20240119
["ID","MTS","AMOUNT","RATE_DAILY","PERIOD"]
[312211710,1705686658477,-500.0,0.00025479,2]
[312211711,1705686658487,-500.0,0.00025479,2]
[312211712,1705686658497,-500.0,0.00025479,2]
[312211713,1705686658507,-500.0,0.00025479,2]
[312211714,1705686658520,-500.0,0.00025479,2]
[312211715,1705686658530,-500.0,0.00025479,2]
[312211716,1705686658539,-500.0,0.00025479,2]
[312211717,1705686658549,-500.0,0.00025479,2]
[312211718,1705686658558,-851.92,0.00025479,2]
[312211719,1705686658568,-500.0,0.00025479,2]
[312211720,1705686658578,-500.0,0.00025479,2]
[312211721,1705686658588,-1965.01,0.00025479,2]
[312211722,1705686658599,-607.77,0.00025479,2]
[312211723,1705686658608,-500.0,0.00025479,2]
[312211724,1705686658618,-500.0,0.00025479,2]
[312211725,1705686658629,-1613.64,0.00025479,2]
[312211726,1705686658639,-500.0,0.00025479,2]
[312211727,1705686658750,-1700.28,0.00025479,2]
[312211728,1705686658762,-9950.98,0.00025479,2]
[312211729,1705686658773,-500.0,0.00025479,2]
[312211730,1705686658783,-500.0,0.00025479,2]
[312211731,1705686658793,-500.0,0.00025479,2]
[312211732,1705686658802,-500.0,0.00025479,2]
[312211733,1705686658811,-987.74,0.00025479,2]
[312211734,1705686658820,-500.0,0.00025479,2]
[312211735,1705686658830,-500.0,0.00025479,2]
[312211736,1705686658839,-500.0,0.00025479,2]
[312211737,1705686658850,-500.0,0.00025479,2]
[312211738,1705686658860,-500.0,0.00025479,2]
[312211739,1705686658870,-1289.54,0.00025479,2]
[312211740,1705686658880,-500.0,0.00025479,2]
[312211741,1705686658890,-500.0,0.00025479,2]
[312211742,1705686658908,-500.0,0.00025479,2]
[312211743,1705686658921,-500.0,0.00025479,2]
[312211744,1705686658932,-500.0,0.00025479,2]
[312211745,1705686658942,-363.38,0.00025479,2]
[312211746,1705686658952,-500.0,0.00025479,2]
[312211747,1705686658962,-500.0,0.00025479,2]
[312211748,1705686658974,-500.0,0.00025479,2]
[312211749,1705686658985,-500.0,0.00025479,2]
[312211750,1705686658995,-500.0,0.00025479,2]
[312211751,1705686659005,-500.0,0.00025479,2]
[312211752,1705686659017,-500.0,0.00025479,2]
[312211753,1705686659028,-2071.27,0.00025479,2]
[312211754,1705686659039,-500.0,0.00025479,2]
[312211755,1705686659050,-500.0,0.00025479,2]
[312211756,1705686659060,-500.0,0.00025479,2]
[312211757,1705686659074,-1028.3,0.00025479,2]
[312211758,1705686659084,-500.0,0.00025479,5]
[312211759,1705686659094,-397.04,0.00025479,2]
[312211760,1705686659104,-500.0,0.00025479,2]
[312211761,1705686659115,-500.0,0.00025479,2]
[312211762,1705686659125,-1821.35,0.00025479,2]
[312211763,1705686659135,-500.0,0.00025479,2]
[312211764,1705686659145,-500.0,0.00025479,2]
[312211765,1705686659157,-500.0,0.00025479,2]
[312211766,1705686659167,-500.0,0.00025479,2]
[312211767,1705686659177,-2515.39,0.00025479,2]
[312211768,1705686659187,-390.74,0.00025479,2]
[312211769,1705686659197,-500.0,0.00025479,2]
[312211770,1705686659207,-579.57,0.00025479,2]
[312211771,1705686659217,-789.05,0.00025479,2]
[312211772,1705686659228,-500.0,0.00025479,2]
[312211773,1705686659238,-1481.48,0.00025479,2]
[312211774,1705686659247,-500.0,0.00025479,2]
[312211775,1705686659257,-358.97,0.00025479,2]
[312211776,1705686659269,-253.56252956,0.00025479,2]
[312211777,1705686659278,-500.0,0.00025479,2]
[312211778,1705686659288,-694.61,0.00025479,2]
[312211779,1705686659298,-500.0,0.00025479,2]
[312211780,1705686659309,-500.0,0.00025479,2]
[312211781,1705686659320,-500.0,0.00025479,2]
[312211782,1705686659330,-767.99,0.00025479,2]
[312211783,1705686659340,-500.0,0.00025479,2]
[312211784,1705686659351,-500.0,0.00025479,2]
[312211785,1705686659361,-704.29,0.00025479,2]
[312211786,1705686659373,-500.0,0.00025479,2]
[312211787,1705686659383,-358.86,0.00025479,2]
[312211788,1705686659393,-327.3,0.00025479,2]
[312211789,1705686659403,-500.0,0.00025479,2]
[312211790,1705686659417,-211.81,0.00025479,2]
[312211791,1705686659428,-500.0,0.00025479,2]
[312211792,1705686659438,-500.0,0.00025479,2]
[312211793,1705686659449,-500.0,0.00025479,2]
[312211794,1705686659459,-1105.0,0.00025479,2]
[312211795,1705686659469,-500.0,0.00025479,2]
[312211796,1705686659479,-500.0,0.00025479,2]
[312211797,1705686659490,-1937.21,0.00025479,2]
[312211798,1705686659500,-500.0,0.00025479,2]
[312211799,1705686659511,-802.6,0.00025479,2]
[312211800,1705686659522,-565.57,0.00025479,2]
[312211801,1705686659533,-500.0,0.00025479,2]
[312211802,1705686659542,-639.82,0.00025479,2]
[312211803,1705686659553,-1124.46,0.00025479,2]
[312211804,1705686659563,-221.67,0.00025479,2]
[312211805,1705686659574,-500.0,0.00025479,2]
[312211806,1705686659585,-500.0,0.00025479,2]
[312211807,1705686659594,-1388.65,0.00025479,2]
[312211808,1705686659605,-500.0,0.00025479,2]
[312211809,1705686659615,-500.0,0.00025479,2]
[312211810,1705686659625,-500.0,0.00025479,2]
[312211811,1705686659637,-569.77,0.00025479,2]
[312211812,1705686659647,-500.0,0.00025479,2]
[312211813,1705686659657,-500.0,0.00025479,2]
[312211814,1705686659668,-500.0,0.00025479,2]
[312211815,1705686659678,-500.0,0.00025479,2]
[312211816,1705686659688,-500.0,0.00025479,2]
[312211817,1705686659698,-3080.21,0.00025479,2]
[312211818,1705686659707,-2102.34,0.00025479,2]
[312211819,1705686659718,-500.0,0.00025479,2]
[312211820,1705686659728,-179.01242334,0.00025482,2]
[312211821,1705686659738,-164.42,0.00025507,2]
[312211822,1705686659748,-151.9905901,0.00025578,2]
[312211823,1705686659763,-150.0,0.00025631,2]
[312211824,1705686659772,-179.01242334,0.00025671,2]
[312211825,1705686659781,-500.0,0.00025752,2]
[312211826,1705686659792,-303.1642795,0.00025753,2]
[312211827,1705686659802,-500.0,0.00025753,2]
[312211828,1705686659812,-500.0,0.00025753,2]
[312211829,1705686659822,-298.42,0.00025753,2]
[312211830,1705686659832,-500.0,0.00025753,2]
[312211831,1705686659843,-500.0,0.00025753,2]
[312211832,1705686659853,-519.2990786,0.00025753,2]
[312211833,1705686659863,-500.0,0.00025753,2]
[312211834,1705686659875,-500.0,0.00025753,2]
[312211835,1705686659887,-286.55,0.00025753,2]
[312211836,1705686659897,-500.0,0.00025753,2]
[312211837,1705686659907,-500.0,0.00025753,2]
[312211838,1705686659917,-500.0,0.00025753,2]
[312211839,1705686659929,-623.3,0.00025753,2]
[312211840,1705686659939,-511.42,0.00025753,2]
[312211841,1705686659949,-500.0,0.00025753,2]
[312211842,1705686659959,-500.0,0.00025753,2]
[312211843,1705686659969,-182.75,0.00025753,2]
[312211844,1705686659979,-312.09,0.00025753,2]
[312211845,1705686659990,-587.66461234,0.00025753,2]
[312211846,1705686660000,-567.72,0.00025753,2]
[312211847,1705686660011,-500.0,0.00025753,2]
[312211848,1705686660020,-500.0,0.00025753,2]
[312211849,1705686660030,-500.0,0.00025753,2]
[312211850,1705686660040,-1692.61,0.00025753,2]
[312211851,1705686660050,-164.29,0.00025753,2]
[312211852,1705686660060,-533.73098201,0.00025753,2]
[312211853,1705686660070,-552.17,0.00025753,2]
[312211854,1705686660080,-152.05372141,0.00025753,2]
[312211855,1705686660092,-604.84,0.00025753,2]
[312211856,1705686660103,-500.0,0.00025753,2]
[312211857,1705686660113,-205.18,0.00025753,2]
[312211858,1705686660123,-500.0,0.00025753,2]
[312211859,1705686660134,-500.0,0.00025753,2]
[312211860,1705686660144,-206.68,0.00025753,2]
[312211861,1705686660154,-256.59,0.00025753,2]
[312211862,1705686660163,-639.02,0.00025753,2]
[312211863,1705686660173,-500.0,0.00025753,2]
[312211864,1705686660183,-500.0,0.00025753,2]
[312211865,1705686660193,-500.0,0.00025753,2]
[312211866,1705686660203,-203.19,0.00025753,2]
[312211867,1705686660213,-500.0,0.00025753,2]
[312211868,1705686660223,-500.0,0.00025753,2]
[312211869,1705686660233,-500.0,0.00025753,2]
[312211870,1705686660243,-500.0,0.00025753,2]
[312211871,1705686660253,-500.0,0.00025753,2]
[312211872,1705686660264,-500.0,0.00025753,2]
[312211873,1705686660273,-500.0,0.00025753,2]
[312211874,1705686660283,-500.0,0.00025753,2]
[312211875,1705686660293,-500.0,0.00025753,2]
[312211876,1705686660303,-399.16,0.00025753,2]
[312211877,1705686660312,-577.97,0.00025753,2]
[312211878,1705686660322,-551.5,0.00025753,2]
[312211879,1705686660332,-533.248508,0.00025753,2]
[312211880,1705686660342,-500.0,0.00025753,2]
[312211881,1705686660351,-612.78,0.00025753,2]
[312211882,1705686660361,-500.0,0.00025753,2]
[312211883,1705686660370,-676.46,0.00025753,2]
[312211884,1705686660381,-683.83,0.00025753,2]
[312211885,1705686660391,-500.0,0.00025753,2]
[312211886,1705686660400,-500.0,0.00025753,2]
[312211887,1705686660411,-548.83,0.00025753,2]
[312211888,1705686660420,-500.0,0.00025753,2]
[312211889,1705686660431,-500.0,0.00025753,2]
[312211890,1705686660441,-500.0,0.00025753,2]
[312211891,1705686660451,-500.0,0.00025753,2]
[312211892,1705686660461,-500.0,0.00025753,2]
[312211893,1705686660470,-227.1,0.00025753,2]
[312211894,1705686660481,-500.0,0.00025753,2]
[312211895,1705686660490,-500.0,0.00025753,2]
[312211896,1705686660500,-500.0,0.00025753,2]
[312211897,1705686660511,-463.32,0.00025753,2]
[312211898,1705686660521,-500.0,0.00025753,2]
[312211899,1705686660530,-500.0,0.00025753,2]
[312211900,1705686660541,-500.0,0.00025753,2]
[312211901,1705686660551,-500.0,0.00025753,2]
[312211902,1705686660561,-413.65,0.00025753,2]
[312211903,1705686660571,-500.0,0.00025753,2]
[312211904,1705686660581,-851.92,0.00025753,2]
[312211905,1705686660590,-500.0,0.00025753,2]
[312211906,1705686660601,-500.0,0.00025753,2]
[312211907,1705686660611,-1965.01,0.00025753,2]
[312211908,1705686660620,-607.77,0.00025753,2]
[312211909,1705686660630,-323.44,0.00025753,2]
[312211910,1705686660639,-540.87,0.00025753,2]
[312211911,1705686660649,-1613.64,0.00025753,2]
[312211912,1705686660659,-500.0,0.00025753,2]
[312211913,1705686660688,-1700.28,0.00025753,2]
[312211914,1705686660712,-9950.98,0.00025753,2]
[312211915,1705686660722,-405.6,0.00025753,2]
[312211916,1705686660731,-500.0,0.00025753,2]
[312211917,1705686660741,-500.0,0.00025753,2]
[312211918,1705686660750,-500.0,0.00025753,2]
[312211919,1705686660761,-987.74,0.00025753,2]
[312211920,1705686660771,-457.64,0.00025753,2]
[312211921,1705686660782,-261.63,0.00025753,2]
[312211922,1705686660792,-525.76,0.00025753,2]
[312211923,1705686660802,-500.0,0.00025753,2]
[312211924,1705686660812,-500.0,0.00025753,2]
[312211925,1705686660821,-1289.54,0.00025753,2]
[312211926,1705686660831,-500.0,0.00025753,2]
[312211927,1705686660841,-500.0,0.00025753,2]
[312211928,1705686660852,-500.0,0.00025753,2]
[312211929,1705686660862,-500.0,0.00025753,2]
[312211930,1705686660872,-327.04,0.00025753,2]
[312211931,1705686660881,-500.0,0.00025753,2]
[312211932,1705686660894,-500.0,0.00025753,2]
[312211933,1705686660904,-500.0,0.00025753,2]
[312211934,1705686660914,-500.0,0.00025753,2]
[312211935,1705686660924,-500.0,0.00025753,2]
[312211936,1705686661234,-261.32,0.00025753,2]
[312211937,1705686661249,-172.86,0.00025753,2]
[312211938,1705686661259,-2071.27,0.00025753,2]
[312211939,1705686661271,-500.0,0.00025753,2]
[312211940,1705686661281,-500.0,0.00025753,2]
[312211941,1705686661292,-334.47,0.00025753,2]
[312211942,1705686661301,-1028.3,0.00025753,2]
[312211943,1705686661311,-500.0,0.00025753,5]
[312211944,1705686661322,-500.0,0.00025753,2]
[312211945,1705686661332,-500.0,0.00025753,2]
[312211946,1705686661342,-1821.35,0.00025753,2]
[312211947,1705686661352,-225.92,0.00025753,2]
[312211948,1705686661361,-500.0,0.00025753,2]
[312211949,1705686661371,-500.0,0.00025753,2]
[312211950,1705686661381,-500.0,0.00025753,2]
[312211951,1705686661391,-2515.39,0.00025753,2]
[312211952,1705686661401,-500.0,0.00025753,2]
[312211953,1705686661411,-579.57,0.00025753,2]
[312211954,1705686661421,-789.05,0.00025753,2]
[312211955,1705686661431,-500.0,0.00025753,2]
[312211956,1705686661440,-1481.48,0.00025753,2]
[312211957,1705686661450,-500.0,0.00025753,2]
[312211958,1705686661460,-500.0,0.00025753,2]
[312211959,1705686661470,-694.61,0.00025753,2]
[312211960,1705686661480,-500.0,0.00025753,2]
[312211961,1705686661490,-201.05,0.00025753,2]
[312211962,1705686661501,-500.0,0.00025753,2]
[312211963,1705686661513,-767.99,0.00025753,2]
[312211964,1705686661523,-500.0,0.00025753,2]
[312211965,1705686661533,-500.0,0.00025753,2]
[312211966,1705686661543,-704.29,0.00025753,2]
[312211967,1705686661553,-500.0,0.00025753,2]
[312211968,1705686661563,-500.0,0.00025753,2]
[312211969,1705686661573,-500.0,0.00025753,2]
[312211970,1705686661582,-500.0,0.00025753,2]
[312211971,1705686661592,-500.0,0.00025753,2]
[312211972,1705686661601,-1105.0,0.00025753,2]
[312211973,1705686661611,-500.0,0.00025753,2]
[312211974,1705686661621,-500.0,0.00025753,2]
[312211975,1705686661631,-1937.21,0.00025753,2]
[312211976,1705686661641,-500.0,0.00025753,2]
[312211977,1705686661651,-802.6,0.00025753,2]
[312211978,1705686661660,-565.57,0.00025753,2]
[312211979,1705686661670,-500.0,0.00025753,2]
[312211980,1705686661681,-1124.46,0.00025753,2]
[312211981,1705686661690,-500.0,0.00025753,2]
[312211982,1705686661700,-500.0,0.00025753,2]
[312211983,1705686661710,-1388.65,0.00025753,2]
[312211984,1705686661720,-221.25,0.00025753,2]
[312211985,1705686661730,-202.28575294,0.00025753,2]
[312211986,1705686661741,-500.0,0.00025753,2]
[312211987,1705686661751,-500.0,0.00025753,2]
[312211988,1705686661763,-500.0,0.00025753,2]
[312211989,1705686661772,-500.0,0.00025753,2]
[312211990,1705686661782,-500.0,0.00025753,2]
[312211991,1705686661792,-426.91,0.00025753,2]
[312211992,1705686661802,-3080.21,0.00025753,2]
[312211993,1705686661811,-2102.34,0.00025753,2]
[312211994,1705686661821,-500.0,0.00025753,2]
[312211995,1705686661830,-164.42,0.00025818,2]
[312211996,1705686661840,-179.01242334,0.0002586,2]
[312211997,1705686661851,-160.09,0.00025897,2]
[312211998,1705686661861,-167.0,0.00025901,2]
[312211999,1705686661872,-7002.3414166,0.00026,5]
[312212000,1705686661883,-650.0,0.00026,3]
[312212001,1705686661895,-3000.0,0.00026,2]
[312212002,1705686661905,-500.0,0.00026,2]
[312212003,1705686661914,-500.0,0.00026026,2]
[312212004,1705686661924,-500.0,0.00026026,2]
[312212005,1705686661936,-161.91,0.00026027,2]
[312212006,1705686661945,-500.0,0.00026027,2]
[312212007,1705686661954,-500.0,0.00026027,2]
[312212008,1705686661964,-500.0,0.00026027,2]
[312212009,1705686661974,-201.7,0.00026027,2]
[312212010,1705686661983,-500.0,0.00026027,2]
[312212011,1705686661993,-301.36,0.00026027,2]
[312212012,1705686662002,-500.0,0.00026027,2]
[312212013,1705686662014,-222.42,0.00026027,2]
[312212014,1705686662023,-500.0,0.00026027,2]
[312212015,1705686662033,-530.98,0.00026027,2]
[312212016,1705686662043,-500.0,0.00026027,2]
[312212017,1705686662053,-439.89,0.00026027,2]
[312212018,1705686662063,-1692.61,0.00026027,2]
[312212019,1705686662073,-500.0,0.00026027,2]
[312212020,1705686662083,-500.0,0.00026027,2]
[312212021,1705686662093,-500.0,0.00026027,2]
[312212022,1705686662102,-357.47,0.00026027,2]
[312212023,1705686662112,-500.0,0.00026027,2]
[312212024,1705686662121,-500.0,0.00026027,2]
[312212025,1705686662131,-500.0,0.00026027,2]
[312212026,1705686662140,-500.0,0.00026027,2]
[312212027,1705686662150,-500.0,0.00026027,2]
[312212028,1705686662160,-500.0,0.00026027,2]
[312212029,1705686662169,-500.0,0.00026027,2]
[312212030,1705686662179,-238.61,0.00026027,2]
[312212031,1705686662189,-500.0,0.00026027,2]
[312212032,1705686662199,-500.0,0.00026027,2]
[312212033,1705686662208,-500.0,0.00026027,2]
[312212034,1705686662218,-577.97,0.00026027,2]
[312212035,1705686662228,-500.0,0.00026027,2]
[312212036,1705686662237,-612.78,0.00026027,2]
[312212037,1705686662246,-447.93,0.00026027,2]
[312212038,1705686662256,-676.46,0.00026027,2]
[312212039,1705686662269,-683.83,0.00026027,2]
[312212040,1705686662280,-574.31,0.00026027,2]
[312212041,1705686662289,-500.0,0.00026027,2]
[312212042,1705686662300,-548.83,0.00026027,2]
[312212043,1705686662310,-500.0,0.00026027,2]
[312212044,1705686662319,-500.0,0.00026027,2]
[312212045,1705686662329,-500.0,0.00026027,2]
[312212046,1705686662340,-500.0,0.00026027,2]
[312212047,1705686662349,-500.0,0.00026027,2]
[312212048,1705686662359,-500.0,0.00026027,2]
[312212049,1705686662369,-500.0,0.00026027,2]
[312212050,1705686662379,-500.0,0.00026027,2]
[312212051,1705686662389,-500.0,0.00026027,2]
[312212052,1705686662398,-380.56,0.00026027,2]
[312212053,1705686662409,-500.0,0.00026027,2]
[312212054,1705686662418,-500.0,0.00026027,2]
[312212055,1705686662430,-500.0,0.00026027,2]
[312212056,1705686662440,-851.92,0.00026027,2]
[312212057,1705686662450,-500.0,0.00026027,2]
[312212058,1705686662460,-500.0,0.00026027,2]
[312212059,1705686662470,-1965.01,0.00026027,2]
[312212060,1705686662480,-607.77,0.00026027,2]
[312212061,1705686662490,-1613.64,0.00026027,2]
[312212062,1705686662500,-500.0,0.00026027,2]
[312212063,1705686662509,-1700.28,0.00026027,2]
[312212064,1705686662522,-9950.98,0.00026027,2]
[312212065,1705686662532,-258.05,0.00026027,2]
[312212066,1705686662542,-500.0,0.00026027,2]
[312212067,1705686662551,-500.0,0.00026027,2]
[312212068,1705686662560,-987.74,0.00026027,2]
[312212069,1705686662571,-500.0,0.00026027,2]
[312212070,1705686662580,-500.0,0.00026027,2]
[312212071,1705686662590,-1289.54,0.00026027,2]
[312212072,1705686662600,-500.0,0.00026027,2]
[312212073,1705686662610,-500.0,0.00026027,2]
[312212074,1705686662620,-500.0,0.00026027,2]
[312212075,1705686662630,-500.0,0.00026027,2]
[312212076,1705686662640,-535.64,0.00026027,2]
[312212077,1705686662649,-500.0,0.00026027,2]
[312212078,1705686662659,-500.0,0.00026027,2]
[312212079,1705686662669,-500.0,0.00026027,2]
[312212080,1705686662679,-500.0,0.00026027,2]
[312212081,1705686662689,-2071.27,0.00026027,2]
[312212082,1705686662699,-500.0,0.00026027,2]
[312212083,1705686662709,-500.72,0.00026027,2]
[312212084,1705686662718,-500.0,0.00026027,5]
[312212085,1705686662728,-1028.3,0.00026027,2]
[312212086,1705686662738,-500.0,0.00026027,2]
[312212087,1705686662747,-500.0,0.00026027,2]
[312212088,1705686662756,-1821.35,0.00026027,2]
[312212089,1705686662769,-500.0,0.00026027,2]
[312212090,1705686662779,-500.0,0.00026027,2]
[312212091,1705686662788,-248.33,0.00026027,2]
[312212092,1705686662798,-2515.39,0.00026027,2]
[312212093,1705686662808,-500.0,0.00026027,2]
[312212094,1705686662817,-579.57,0.00026027,2]
[312212095,1705686662829,-789.05,0.00026027,2]
[312212096,1705686662838,-500.0,0.00026027,2]
[312212097,1705686662848,-1481.48,0.00026027,2]
[312212098,1705686662858,-500.0,0.00026027,2]
[312212099,1705686662868,-500.0,0.00026027,2]
[312212100,1705686662881,-694.61,0.00026027,2]
[312212101,1705686662891,-500.0,0.00026027,2]
[312212102,1705686662900,-356.3,0.00026027,2]
[312212103,1705686662910,-767.99,0.00026027,2]
[312212104,1705686662920,-379.22,0.00026027,2]
[312212105,1705686662931,-500.0,0.00026027,2]
[312212106,1705686662940,-704.29,0.00026027,2]
[312212107,1705686662950,-257.42,0.00026027,2]
[312212108,1705686662963,-500.0,0.00026027,2]
[312212109,1705686662972,-500.0,0.00026027,2]
[312212110,1705686662982,-500.0,0.00026027,2]
[312212111,1705686662991,-500.0,0.00026027,2]
[312212112,1705686663002,-1105.0,0.00026027,2]
[312212113,1705686663014,-500.0,0.00026027,2]
[312212114,1705686663024,-500.0,0.00026027,2]
[312212115,1705686663034,-1937.21,0.00026027,2]
[312212116,1705686663044,-500.0,0.00026027,2]
[312212117,1705686663055,-802.6,0.00026027,2]
[312212118,1705686663065,-565.57,0.00026027,2]
[312212119,1705686663076,-250.84,0.00026027,2]
[312212120,1705686663087,-1124.46,0.00026027,2]
[312212121,1705686663098,-169.62,0.00026027,2]
[312212122,1705686663107,-500.0,0.00026027,2]
[312212123,1705686663116,-1388.65,0.00026027,2]
[312212124,1705686663126,-486.08,0.00026027,2]
[312212125,1705686663135,-500.0,0.00026027,2]
[312212126,1705686663144,-500.0,0.00026027,2]
[312212127,1705686663154,-500.0,0.00026027,2]
[312212128,1705686663164,-500.0,0.00026027,2]
[312212129,1705686663173,-3080.21,0.00026027,2]
[312212130,1705686663183,-2102.34,0.00026027,2]
[312212131,1705686663193,-417.91,0.00026027,2]
[312212132,1705686663202,-1352.80805549,0.00026035,2]
[312212133,1705686663212,-179.01242334,0.00026049,2]
[312212134,1705686663222,-164.42,0.00026129,2]
[312212135,1705686663232,-1035.00007615,0.000262,2]
[312212136,1705686663243,-179.01242334,0.00026237,2]
[312212137,1705686663253,-156.92,0.00026243,2]
[312212138,1705686663263,-1000.0,0.00026246,2]
[312212139,1705686663272,-322.90099813,0.00026287,2]
[312212140,1705686663281,-1000.0,0.00026287,2]
[312212141,1705686663290,-500.0,0.000263,2]
[312212142,1705686663299,-500.0,0.00026301,2]
[312212143,1705686663309,-500.0,0.00026301,2]
[312212144,1705686663319,-397.5,0.00026301,2]
[312212145,1705686663330,-500.0,0.00026301,2]
[312212146,1705686663339,-500.0,0.00026301,2]
[312212147,1705686663349,-500.0,0.00026301,2]
[312212148,1705686663358,-500.0,0.00026301,2]
[312212149,1705686663367,-1692.61,0.00026301,2]
[312212150,1705686663377,-500.0,0.00026301,2]
[312212151,1705686663386,-500.0,0.00026301,2]
[312212152,1705686663396,-500.0,0.00026301,2]
[312212153,1705686663406,-500.0,0.00026301,2]
[312212154,1705686663415,-351.92,0.00026301,2]
[312212155,1705686663425,-333.93,0.00026301,2]
[312212156,1705686663435,-344.26,0.00026301,2]
[312212157,1705686663444,-500.0,0.00026301,2]
[312212158,1705686663456,-196.7,0.00026301,2]
[312212159,1705686663466,-500.0,0.00026301,2]
[312212160,1705686663475,-500.0,0.00026301,2]
[312212161,1705686663485,-500.0,0.00026301,2]
[312212162,1705686663494,-500.0,0.00026301,2]
[312212163,1705686663504,-577.97,0.00026301,2]
[312212164,1705686663514,-500.0,0.00026301,2]
[312212165,1705686663523,-612.78,0.00026301,2]
[312212166,1705686663532,-676.46,0.00026301,2]
[312212167,1705686663543,-683.83,0.00026301,2]
[312212168,1705686663552,-500.0,0.00026301,2]
[312212169,1705686663561,-548.83,0.00026301,2]
[312212170,1705686663572,-500.0,0.00026301,2]
[312212171,1705686663582,-500.0,0.00026301,2]
[312212172,1705686663591,-500.0,0.00026301,2]
[312212173,1705686663601,-500.0,0.00026301,2]
[312212174,1705686663612,-500.0,0.00026301,2]
[312212175,1705686663622,-500.0,0.00026301,2]
[312212176,1705686663632,-500.0,0.00026301,2]
[312212177,1705686663691,-500.0,0.00026301,2]
[312212178,1705686663701,-500.0,0.00026301,2]
[312212179,1705686663712,-500.0,0.00026301,2]
[312212180,1705686663722,-500.0,0.00026301,2]
[312212181,1705686663731,-500.0,0.00026301,2]
[312212182,1705686663741,-851.92,0.00026301,2]
[312212183,1705686663750,-174.49,0.00026301,2]
[312212184,1705686663760,-500.0,0.00026301,2]
[312212185,1705686663771,-1965.01,0.00026301,2]
[312212186,1705686663780,-607.77,0.00026301,2]
[312212187,1705686663790,-1613.64,0.00026301,2]
[312212188,1705686663800,-500.0,0.00026301,2]
[312212189,1705686663809,-1700.28,0.00026301,2]
[312212190,1705686663818,-9950.98,0.00026301,2]
[312212191,1705686663827,-500.0,0.00026301,2]
[312212192,1705686663837,-500.0,0.00026301,2]
[312212193,1705686663846,-987.74,0.00026301,2]
[312212194,1705686663856,-454.23,0.00026301,2]
[312212195,1705686663865,-500.0,0.00026301,2]
[312212196,1705686663875,-1289.54,0.00026301,2]
[312212197,1705686663887,-500.0,0.00026301,2]
[312212198,1705686663904,-500.0,0.00026301,2]
[312212199,1705686663914,-500.0,0.00026301,2]
[312212200,1705686663923,-500.0,0.00026301,2]
[312212201,1705686663932,-337.01439132,0.00026301,2]
[312212202,1705686663942,-500.0,0.00026301,2]
[312212203,1705686663952,-500.0,0.00026301,2]
[312212204,1705686663961,-500.0,0.00026301,2]
[312212205,1705686663978,-2071.27,0.00026301,2]
[312212206,1705686663988,-204.31,0.00026301,2]
[312212207,1705686663997,-500.0,0.00026301,5]
[312212208,1705686664007,-1028.3,0.00026301,2]
[312212209,1705686664018,-500.0,0.00026301,2]